bitfinex-derivatives/quotes_SOLF0:USTF0_20251024
["timestamp","ask_amount","ask_price","bid_price","bid_amount"]
[1761302004709,2.69,191.83,191.8,45.89]
[1761302005116,2.69,191.83,191.8,2.79]
[1761302005316,2.69,191.83,191.8,45.89]
[1761302006910,2.69,191.83,191.8,2.79]
[1761302007111,2.69,191.83,191.8,45.87]
[1761302008003,2.69,191.83,191.8,43.08]
[1761302008207,2.69,191.82,191.8,43.08]
[1761302008407,2.69,191.82,191.77,2.79]
[1761302008609,2.69,191.82,191.79,2.85]
[1761302008806,2.69,191.82,191.79,45.95]
[1761302009006,2.69,191.82,191.79,2.85]
[1761302009205,2.69,191.82,191.8,45.86]
[1761302009610,2.69,191.82,191.8,2.78]
[1761302009818,2.69,191.82,191.8,45.86]
[1761302010709,4.6905,191.84,191.8,45.86]
[1761302011015,2.67,191.83,191.8,45.86]
[1761302012014,2.67,191.83,191.8,2.78]
[1761302012214,2.67,191.83,191.8,45.86]
[1761302012918,2.67,191.83,191.8,2.78]
[1761302013107,2.67,191.83,191.8,45.86]
[1761302013512,2.67,191.83,191.8,2.78]
[1761302013715,2.67,191.83,191.8,45.86]
[1761302014220,4.6905,191.84,191.81,2.78]
[1761302014421,7.3605,191.84,191.81,2.78]
[1761302017717,4.69,191.86,191.81,2.78]
[1761302018120,2.67,191.85,191.81,2.78]
[1761302018522,4.69,191.86,191.83,2.78]
[1761302018723,4.69,191.86,191.83,45.86]
[1761302019023,4.69,191.86,191.84,2.78]
[1761302019318,7.3595,191.88,191.84,2.78]
[1761302019523,2.67,191.87,191.84,2.78]
[1761302019926,2.67,191.87,191.84,45.86]
[1761302021117,7.3597,191.87,191.84,45.86]
[1761302021321,4.6897,191.87,191.85,2.78]
[1761302021523,7.3597,191.87,191.85,2.78]
[1761302022121,4.6897,191.87,191.85,2.78]
[1761302022322,4.6892,191.89,191.86,43.08]
[1761302022520,4.6892,191.89,191.87,2.78]
[1761302023622,7.3592,191.89,191.87,2.78]
[1761302023827,2.67,191.88,191.86,21.08]
[1761302024020,2.67,191.88,191.86,23.86]
[1761302024526,4.81187998,191.95,191.87,3.82]
[1761302024729,2.67,191.93,191.86,2.78]
[1761302025028,2.67,191.93,191.81,15.63]
[1761302025029,2.67,191.93,191.88,2.78]
[1761302025217,2.67,191.93,191.9,2.78]
[1761302025524,2.67,191.97,191.9,2.78]
[1761302025828,2.67,191.95,191.9,2.78]
[1761302026026,2.67,191.95,191.89,44.2]
[1761302026223,2.67,191.95,191.88,44.2]
[1761302026521,2.67,191.95,191.88,46.98]
[1761302027327,2.67,191.95,191.88,2.78]
[1761302027628,2.67,191.95,191.89,2.78]
[1761302027822,2.67,191.95,191.89,29.98]
[1761302028024,2.67,191.95,191.9,2.78]
[1761302028523,2.67,191.95,191.91,2.78]
[1761302034133,2.67,191.95,191.91,46.9]
[1761302034838,2.67,191.95,191.91,2.78]
[1761302035038,2.67,191.95,191.91,46.88]
[1761302035427,2.67,191.95,191.92,2.78]
[1761302037738,2.67,191.95,191.92,46.86]
[1761302038238,2.67,191.95,191.93,2.78]
[1761302038538,7.3573,191.97,191.93,2.78]
[1761302038741,2.67,191.97,191.93,2.78]
[1761302039239,2.67,191.97,191.94,2.69]
[1761302040243,7.4871,191.98,191.94,2.69]
[1761302040542,7.4871,191.98,191.95,2.69]
[1761302041639,103.60898698,192.03,191.95,2.69]
[1761302041640,2.8,192.0,191.95,2.69]
[1761302041837,2.8,192.0,191.96,2.69]
[1761302042241,2.8,192.0,191.97,2.69]
[1761302042635,7.4865,192.0,191.97,2.69]
[1761302042840,2.8,191.99,191.95,44.02]
[1761302043245,2.8,191.99,191.95,2.69]
[1761302044049,2.8,192.02,191.96,2.69]
[1761302044253,2.8,192.02,191.97,44.0]
[1761302044446,2.8,192.02,191.98,2.69]
[1761302045048,2.8,192.0,191.98,2.69]
[1761302045348,7.4863,192.01,191.98,2.69]
[1761302046944,2.8,192.01,191.98,2.69]
[1761302047549,2.8,192.09,191.98,49.06064953]
[1761302047745,2.8,192.07,191.98,46.37064953]
[1761302047943,2.8,192.06,191.99,2.69]
[1761302052755,2.39064953,192.06,191.96,7.3773]
[1761302052947,2.8,192.05,191.97,2.69]
[1761302053446,2.8,192.1,191.99,2.39064953]
[1761302053648,2.8,192.1,192.0,2.69]
[1761302055057,4.6846,192.08,192.02,2.69]
[1761302055759,2.8,192.06,192.02,2.69]
[1761302058850,4.6848,192.07,192.02,2.69]
[1761302059055,7.4848,192.07,192.02,2.69]
[1761302059960,4.6848,192.07,192.02,2.69]
[1761302060362,7.4848,192.07,192.02,2.69]
[1761302062472,2.8,192.06,192.02,2.69]
[1761302063466,4.6848,192.07,192.02,2.69]
[1761302064073,4.6848,192.07,192.02,43.88]
[1761302064272,4.6848,192.07,192.03,2.69]
[1761302064574,2.8,192.13,192.07,2.69]
[1761302065969,2.8,192.13,192.08,2.69]
[1761302068363,7.4834,192.13,192.08,2.69]
[1761302068671,2.65,192.12,192.07,2.74]
[1761302078380,2.65,192.12,192.08,2.81]
[1761302078774,4.6834,192.13,192.08,2.81]
[1761302079281,7.3834,192.13,192.08,2.81]
[1761302079781,4.6828,192.15,192.08,2.81]
[1761302080184,4.6828,192.15,192.09,4.684]
[1761302080386,7.3828,192.15,192.1,2.81]
[1761302081385,2.7,192.15,192.1,2.81]
[1761302081591,4.6823,192.17,192.11,2.81]
[1761302082081,7.3823,192.17,192.13,2.81]
[1761302082284,4.6825,192.16,192.04,2.81]
[1761302082476,1.52545035,192.14,192.06,2.81]
[1761302082675,2.7,192.13,192.06,46.61]
[1761302083588,7.3832,192.13,192.07,4.6845]
[1761302083983,4.6832,192.13,192.07,4.6845]
[1761302084180,2.7,192.12,192.08,2.81]
[1761302084684,2.7,192.08,191.98,2.81]
[1761302084990,4.22545035,192.02,191.98,2.81]
[1761302085383,1.52545035,192.0,191.92,76.94705904]
[1761302085690,2.7,191.99,191.93,46.59]
[1761302085889,1.52545035,191.98,191.93,2.81]
[1761302086086,2.7,191.97,191.93,43.78]
[1761302086689,2.7,191.97,191.93,46.59]
[1761302090292,4.22545035,191.97,191.93,43.78]
[1761302090493,2.7,191.96,191.93,43.78]
[1761302091090,2.7,191.96,191.9,46.57]
[1761302099096,2.7,191.96,191.9,2.81]
[1761302099403,2.7,191.96,191.91,46.38]
[1761302102100,2.7,191.96,191.88,2.68]
[1761302102296,1.52545035,191.95,191.88,2.68]
[1761302102497,2.69,191.94,191.88,2.68]
[1761302103002,1.52545035,191.91,191.82,66.20545035]
[1761302103305,2.69,191.9,191.83,43.68]
[1761302104608,2.69,191.9,191.83,46.36]
[1761302105100,2.69,191.9,191.83,2.68]
[1761302105301,2.69,191.9,191.83,46.38]
[1761302106108,2.69,191.9,191.83,46.36]
[1761302106311,2.69,191.9,191.83,2.68]
[1761302106811,2.69,191.9,191.83,46.36]
[1761302109308,2.69,191.9,191.83,2.68]
[1761302109503,2.69,191.9,191.83,46.34]
[1761302110508,2.69,191.9,191.83,2.68]
[1761302111811,1.52545035,191.89,191.83,2.68]
[1761302112011,2.69,191.88,191.83,2.68]
[1761302112610,2.69,191.88,191.8,47.84545035]
[1761302114314,2.69,191.88,191.8,4.20545035]
[1761302117021,2.69,191.88,191.8,2.68]
[1761302117710,2.69,191.87,191.8,2.68]
[1761302124237,2.69,191.87,191.8,4.20545035]
[1761302126538,2.69,191.87,191.8,2.68]
[1761302126739,2.69,191.86,191.8,2.68]
[1761302127732,2.69,191.85,191.8,2.68]
[1761302128736,2.69,191.85,191.76,4.6921]
[1761302128737,2.69,191.85,191.77,2.73]
[1761302129142,2.81,191.84,191.77,2.73]
[1761302129343,4.33545035,191.87,191.77,2.73]
[1761302129641,11.40999554,191.86,191.78,1.52545035]
[1761302129845,7.55208132,191.85,191.79,2.85]
[1761302130044,2.81,191.85,191.79,2.85]
[1761302130434,2.81,191.84,191.79,2.85]
[1761302131834,6.66998388,191.86,191.79,2.85]
[1761302132042,7.55433006,191.85,191.82,2.85]
[1761302132242,2.81,191.85,191.82,2.85]
[1761302132743,2.81,191.83,191.79,2.85]
[1761302133744,7.5011,191.81,191.78,2.85]
[1761302134046,2.81,191.8,191.78,2.85]
[1761302134648,2.81,191.8,191.77,1.52545035]
[1761302135148,7.5013,191.8,191.77,4.37545035]
[1761302138050,7.5013,191.8,191.77,2.85]
[1761302138252,4.6915,191.79,191.77,2.85]
[1761302138746,7.5015,191.79,191.77,2.85]
[1761302138945,4.6915,191.79,191.77,2.85]
[1761302140356,7.5015,191.79,191.75,2.85]
[1761302141354,4.6919,191.78,191.75,2.85]
[1761302141651,2.39174379,191.83,191.75,2.85]
[1761302141858,2.81,191.81,191.75,2.85]
[1761302142057,2.81,191.8,191.75,2.85]
[1761302142956,4.692,191.77,191.75,2.85]
[1761302152957,4.6916,191.79,191.75,2.85]
[1761302154063,4.691,191.81,191.75,2.85]
[1761302154364,2.81,191.83,191.75,2.85]
[1761302154862,2.81,191.83,191.76,2.85]
[1761302155256,2.81,191.82,191.76,2.85]
[1761302155963,4.6913,191.8,191.76,2.85]
[1761302156461,2.81,191.8,191.76,2.85]
[1761302158059,4.6916,191.79,191.76,2.85]
[1761302159764,4.6918,191.78,191.76,2.85]
[1761302159961,2.7,191.77,191.75,46.08]
[1761302160156,2.7,191.77,191.75,43.44]
[1761302160366,2.7,191.74,191.72,2.64]
[1761302160570,2.7,191.74,191.7,2.64]
[1761302161069,2.7,191.73,191.7,2.64]
[1761302162167,7.3928,191.74,191.7,2.64]
[1761302163164,2.7,191.73,191.7,2.64]
[1761302164062,7.393,191.73,191.7,2.64]
[1761302164263,2.7,191.77,191.69,43.4]
[1761302164463,2.7,191.75,191.69,43.4]
[1761302164670,2.7,191.73,191.69,43.4]
[1761302165169,2.7,191.7,191.69,43.4]
[1761302167273,4.6935,191.71,191.69,43.4]
[1761302167467,7.3935,191.71,191.69,43.4]
[1761302167770,2.7,191.7,191.69,43.4]
[1761302168870,2.7,191.7,191.67,2.64]
[1761302172669,7.3938,191.7,191.67,2.64]
[1761302173871,2.7,191.69,191.67,2.64]
[1761302182090,7.3933,191.72,191.67,2.64]
[1761302182689,2.7,191.71,191.67,2.64]
[1761302182891,2.7,191.7,191.67,2.64]
[1761302183691,4.6935,191.71,191.67,2.64]
[1761302184791,4.6935,191.71,191.68,2.64]
[1761302186089,4.6931,191.73,191.68,2.64]
[1761302186594,2.7,191.72,191.68,2.64]
[1761302187287,4.6931,191.73,191.68,2.64]
[1761302187488,7.3931,191.73,191.68,2.64]
[1761302188089,7.3931,191.73,191.69,2.64]
[1761302188493,4.6931,191.73,191.69,2.64]
[1761302189598,4.6931,191.73,191.7,2.81]
[1761302189989,4.6925,191.75,191.7,2.81]
[1761302190296,2.66,191.77,191.71,2.81]
[1761302191100,4.6923,191.76,191.71,2.81]
[1761302192593,2.66,191.77,191.72,2.81]
[1761302193785,7.352,191.77,191.72,2.81]
[1761302194294,2.66,191.74,191.7,46.13]
[1761302194496,2.66,191.74,191.7,46.11]
[1761302194888,2.66,191.73,191.7,46.11]
[1761302195691,2.66,191.73,191.7,43.3]
[1761302195890,4.6927,191.74,191.71,2.81]
[1761302196194,4.6923,191.76,191.71,2.81]
[1761302197095,4.6923,191.76,191.73,2.81]
[1761302197999,2.66,191.77,191.73,2.81]
[1761302198401,4.6918,191.78,191.73,2.81]
[1761302198603,7.3518,191.78,191.73,2.81]
[1761302198800,4.6918,191.78,191.74,2.81]
[1761302198995,4.6913,191.8,191.74,2.81]
[1761302199998,4.6913,191.8,191.74,4.6925]
[1761302200193,4.6913,191.8,191.75,2.81]
[1761302200712,4.6908,191.82,191.77,1.5301541]
[1761302201003,7.3508,191.82,191.78,2.81]
[1761302201695,4.6904,191.84,191.78,2.81]
[1761302201900,7.3504,191.84,191.78,2.81]
[1761302204998,2.66,191.86,191.79,2.81]
[1761302205203,2.66,191.84,191.79,2.81]
[1761302205390,4.6906,191.83,191.77,44.8301541]
[1761302205595,2.66,191.82,191.77,46.11]
[1761302205995,2.66,191.82,191.77,2.81]
[1761302206398,2.66,191.81,191.76,43.3]
[1761302207006,2.66,191.8,191.76,43.3]
[1761302207703,2.66,191.8,191.76,46.11]
[1761302208707,4.6911,191.81,191.77,2.81]
[1761302209402,7.3511,191.81,191.77,2.81]
[1761302212108,2.66,191.8,191.77,2.81]
[1761302216410,2.66,191.8,191.76,47.9921]
[1761302216608,2.66,191.81,191.74,2.81]
[1761302216813,2.66,191.81,191.74,43.28]
[1761302217204,4.6918,191.78,191.74,43.28]
[1761302217408,2.66,191.77,191.74,46.09]
[1761302219615,2.66,191.77,191.75,2.76]
[1761302219815,2.66,191.77,191.73,4.6928]
[1761302220114,2.88,191.76,191.73,2.76]
[1761302222922,4.692,191.77,191.73,2.76]
[1761302223818,2.88,191.76,191.72,4.6931]
[1761302224410,2.88,191.76,191.72,7.4531]
[1761302225519,2.88,191.76,191.73,2.76]
[1761302227515,4.692,191.77,191.73,7.4528]
[1761302227712,2.88,191.8,191.77,2.76]
[1761302227913,2.88,191.83,191.77,2.76]
[1761302228119,2.88,191.81,191.77,46.04]
[1761302228320,4.6911,191.81,191.78,1.5301541]
[1761302228520,4.6911,191.81,191.79,2.76]
[1761302229023,7.5711,191.81,191.77,46.04]
[1761302229223,7.5711,191.81,191.78,2.76]
[1761302229624,2.88,191.8,191.78,2.76]
[1761302232715,4.6911,191.81,191.78,2.76]
[1761302233119,7.5711,191.81,191.78,2.76]
[1761302233429,2.88,191.82,191.79,2.76]
[1761302233625,2.88,191.82,191.77,46.04]
[1761302233830,2.88,191.82,191.78,1.5301541]
[1761302234726,2.88,191.82,191.78,44.8101541]
[1761302235129,2.88,191.81,191.78,44.8101541]
[1761302235722,2.88,191.81,191.78,43.28]
[1761302236021,7.571,191.81,191.78,43.28]
[1761302236725,2.88,191.79,191.78,43.28]
[1761302236917,2.88,191.79,191.73,1.5301541]
[1761302237317,2.88,191.8,191.74,43.28]
[1761302237832,2.88,191.78,191.71,46.04]
[1761302238027,2.88,191.76,191.72,2.76]
[1761302239132,7.5725,191.75,191.72,2.76]
[1761302240329,7.5725,191.75,191.72,46.04]
[1761302240634,4.692,191.77,191.73,2.76]
[1761302240834,2.88,191.76,191.73,4.2901541]
[1761302241537,7.5723,191.76,191.73,4.2901541]
[1761302244140,4.6923,191.76,191.74,2.76]
[1761302245134,7.5723,191.76,191.74,2.76]
[1761302245637,7.5723,191.76,191.73,47.5701541]
[1761302246343,7.5723,191.76,191.73,4.2901541]
[1761302246641,7.5725,191.75,191.73,43.28]
[1761302247044,7.5725,191.75,191.72,44.8101541]
[1761302247340,7.5725,191.75,191.72,47.5701541]
[1761302251141,4.6921,191.77,191.74,1.5301541]
[1761302251344,2.78,191.76,191.74,4.3901541]
[1761302251642,2.78,191.76,191.74,1.5301541]
[1761302253748,2.78,191.76,191.73,46.14]
[1761302253948,7.4723,191.76,191.74,2.86]
[1761302254136,7.4723,191.76,191.73,44.8101541]
[1761302254340,7.4723,191.76,191.73,47.6701541]
[1761302255649,7.4723,191.76,191.74,2.86]
[1761302257847,7.4723,191.76,191.74,46.14]
[1761302258147,7.4723,191.76,191.74,2.86]
[1761302259745,7.4723,191.76,191.74,46.14]
[1761302259946,7.4723,191.76,191.74,2.86]
[1761302260342,7.4718,191.78,191.75,4.3901541]
[1761302260650,7.4718,191.78,191.75,2.86]
[1761302260851,7.4718,191.78,191.75,46.14]
[1761302261450,4.6918,191.78,191.75,46.14]
[1761302261650,7.472,191.77,191.75,46.14]
[1761302261956,7.472,191.77,191.75,2.86]
[1761302262553,7.472,191.77,191.74,2.86]
[1761302262754,7.472,191.77,191.74,46.14]
[1761302263755,7.472,191.77,191.74,2.86]
[1761302264254,7.472,191.77,191.74,46.14]
[1761302264455,7.472,191.77,191.74,2.86]
[1761302265451,7.472,191.77,191.74,46.14]
[1761302265652,7.472,191.77,191.74,2.86]
[1761302268157,7.472,191.77,191.74,46.12]
[1761302268358,7.472,191.77,191.74,2.86]
[1761302268952,7.4723,191.76,191.73,43.26]
[1761302269156,2.78,191.75,191.68,5.25162034]
[1761302269350,2.78,191.75,191.69,43.26]
[1761302269658,2.78,191.75,191.69,46.12]
[1761302269857,2.78,191.75,191.7,43.26]
[1761302270159,4.79541227,191.8,191.7,46.12]
[1761302270160,2.78,191.73,191.7,46.12]
[1761302272556,7.473,191.73,191.7,43.26]
[1761302272764,2.78,191.77,191.7,43.26]
[1761302273058,2.78,191.75,191.7,43.26]
[1761302273264,2.78,191.73,191.7,43.26]
[1761302273852,2.78,191.73,191.7,46.12]
[1761302274062,7.4733,191.72,191.7,2.86]
[1761302274563,7.4733,191.72,191.68,46.12]
[1761302274763,2.78,191.71,191.68,46.12]
[1761302275562,2.78,191.71,191.68,2.86]
[1761302275766,4.6928,191.74,191.68,2.86]
[1761302275957,4.6928,191.74,191.69,2.86]
[1761302276158,2.78,191.73,191.69,2.86]
[1761302277060,7.4733,191.72,191.69,2.86]
[1761302280369,7.4628,191.74,191.69,2.86]
[1761302280663,2.77,191.73,191.69,2.86]
[1761302281667,2.77,191.72,191.69,2.86]
[1761302282066,2.77,191.72,191.68,43.26]
[1761302282868,2.77,191.72,191.68,46.09]
[1761302283171,2.77,191.71,191.68,46.09]
[1761302284366,2.77,191.7,191.68,46.09]
[1761302285062,2.77,191.7,191.68,43.26]
[1761302285063,7.4638,191.7,191.68,43.26]
[1761302285262,2.77,191.69,191.62,2.39162034]
[1761302285467,2.77,191.69,191.62,2.83]
[1761302285659,9.3843,191.77,191.62,2.83]
[1761302285660,2.77,191.65,191.62,46.09]
[1761302287071,2.77,191.65,191.62,43.26]
[1761302289571,2.77,191.65,191.62,46.09]
[1761302290875,2.77,191.65,191.63,2.83]
[1761302292074,2.77,191.65,191.62,2.83]
[1761302294983,7.4643,191.68,191.63,2.83]
[1761302295777,2.77,191.67,191.63,2.83]
[1761302295978,2.77,191.67,191.64,2.83]
[1761302297672,4.6943,191.68,191.64,2.83]
[1761302297870,7.4643,191.68,191.64,2.83]
[1761302298372,2.77,191.67,191.64,2.83]
[1761302298878,4.6943,191.68,191.64,2.83]
[1761302299178,7.4643,191.68,191.64,2.83]
[1761302299774,2.77,191.71,191.66,2.83]
[1761302301071,2.77,191.69,191.66,2.83]
[1761302302176,7.464,191.69,191.66,2.83]
[1761302306578,7.4642,191.68,191.65,43.26]
[1761302306776,2.77,191.67,191.62,46.09]
[1761302306972,2.77,191.67,191.63,2.83]
[1761302307990,2.77,191.66,191.63,2.83]
[1761302308286,2.77,191.66,191.61,7.08732034]
[1761302308479,2.77,191.66,191.62,2.83]
[1761302309092,7.465,191.65,191.62,2.83]
[1761302311178,2.75,191.64,191.61,43.26]
[1761302311984,2.75,191.64,191.61,46.0]
[1761302312895,2.75,191.64,191.62,2.67]
[1761302313395,4.695,191.65,191.62,2.67]
[1761302313596,7.415,191.65,191.62,2.67]
[1761302317696,7.4145,191.67,191.62,2.67]
[1761302317902,4.6945,191.67,191.62,2.67]
[1761302318100,2.72,191.66,191.62,2.67]
[1761302319400,4.6945,191.67,191.63,2.67]
[1761302319596,7.4145,191.67,191.63,2.67]
[1761302322095,4.6945,191.67,191.63,2.67]
[1761302322303,2.72,191.66,191.63,2.67]
[1761302322703,2.72,191.66,191.64,1.53245059]
[1761302324705,2.72,191.66,191.64,4.20245059]
[1761302326306,7.414,191.69,191.65,2.67]
[1761302326502,6.71887404,191.68,191.65,2.67]
[1761302326806,2.72,191.68,191.65,2.67]
[1761302328102,7.4142,191.68,191.65,2.67]
[1761302330007,7.4145,191.67,191.65,2.67]
[1761302331210,2.72,191.65,191.64,1.53245059]
[1761302331808,4.6947,191.66,191.64,4.20245059]
[1761302334713,4.6947,191.66,191.65,2.67]
[1761302336405,4.6947,191.66,191.65,45.93]
[1761302337111,4.6947,191.66,191.65,2.67]
[1761302338914,4.6947,191.66,191.65,45.93]
[1761302340217,4.6947,191.66,191.65,2.67]
[1761302342616,7.3147,191.66,191.65,2.67]
[1761302343021,7.3147,191.66,191.61,2.72]
[1761302343022,2.62,191.65,191.61,2.72]
[1761302343319,2.62,191.65,191.62,45.96]
[1761302343515,2.62,191.65,191.62,2.72]
[1761302343716,2.62,191.65,191.62,45.96]
[1761302345414,2.62,191.65,191.63,2.72]
[1761302346718,4.6947,191.66,191.63,2.72]
[1761302347725,2.62,191.66,191.63,2.72]
[1761302348628,7.3143,191.68,191.63,2.72]
[1761302349121,2.62,191.67,191.63,2.72]
[1761302349318,7.3143,191.68,191.64,1.53245059]
[1761302349517,2.62,191.67,191.65,2.72]
[1761302349909,7.3145,191.67,191.65,2.72]
[1761302350115,2.62,191.66,191.63,2.72]
[1761302352419,2.62,191.66,191.64,45.96]
[1761302352714,2.62,191.66,191.64,43.24]
[1761302353027,2.62,191.65,191.64,43.24]
[1761302356828,4.6943,191.68,191.64,45.96]
[1761302357121,4.01470276,191.67,191.65,2.72]
[1761302357327,2.62,191.67,191.65,2.72]
[1761302358028,7.3137,191.7,191.65,45.96]
[1761302358233,7.3137,191.7,191.64,1.53245059]
[1761302358234,7.3137,191.7,191.66,2.72]
[1761302358424,2.62,191.69,191.66,45.96]
[1761302360126,4.6937,191.7,191.67,2.72]
[1761302360329,7.3137,191.7,191.67,2.72]
[1761302361030,2.62,191.69,191.67,2.72]
[1761302362221,2.62,191.69,191.67,45.96]
[1761302362417,2.62,191.69,191.67,2.72]
[1761302362622,2.62,191.69,191.67,45.96]
[1761302362829,7.3137,191.7,191.67,45.96]
[1761302363322,2.62,191.69,191.67,2.72]
[1761302363523,2.62,191.69,191.67,45.96]
[1761302365631,7.3137,191.7,191.67,45.96]
[1761302366326,4.6937,191.7,191.67,45.96]
[1761302366526,2.62,191.69,191.67,45.96]
[1761302366731,2.62,191.69,191.64,2.72]
[1761302367027,2.62,191.69,191.65,43.22]
[1761302368028,2.62,191.69,191.66,2.72]
[1761302368225,7.3137,191.7,191.66,2.72]
[1761302368618,2.62,191.69,191.66,2.72]
[1761302370223,2.62,191.69,191.66,45.94]
[1761302370522,2.62,191.69,191.67,2.84]
[1761302371932,7.3637,191.7,191.67,2.84]
[1761302372132,2.67,191.69,191.67,2.84]
[1761302372824,2.67,191.69,191.67,46.06]
[1761302373535,2.67,191.69,191.67,2.84]
[1761302373831,2.67,191.69,191.67,46.06]
[1761302374131,2.67,191.68,191.65,43.22]
[1761302375333,2.67,191.68,191.65,2.84]
[1761302376030,2.67,191.67,191.65,2.84]
[1761302379441,4.6943,191.68,191.65,2.84]
[1761302379633,7.3643,191.68,191.65,2.84]
[1761302380640,7.3643,191.68,191.65,46.06]
[1761302381344,2.67,191.67,191.65,46.06]
[1761302381837,2.67,191.67,191.64,46.06]
[1761302382344,2.67,191.67,191.64,2.84]
[1761302384442,2.67,191.67,191.65,2.84]
[1761302385245,7.3643,191.68,191.65,2.84]
[1761302386746,2.67,191.68,191.65,2.84]
[1761302387246,2.67,191.68,191.66,2.84]
[1761302388935,4.6939,191.7,191.66,2.84]
[1761302389340,2.67,191.69,191.66,2.84]
[1761302390545,2.67,191.69,191.67,2.84]
[1761302393953,4.6941,191.69,191.65,2.84]
[1761302394150,2.67,191.68,191.66,43.2]
[1761302394351,2.67,191.68,191.65,46.04]
[1761302394950,2.67,191.68,191.65,2.84]
[1761302395351,2.67,191.67,191.65,2.84]
[1761302396453,2.67,191.67,191.64,46.04]
[1761302397259,2.67,191.67,191.65,2.84]
[1761302400964,2.79,191.66,191.64,43.2]
[1761302401460,2.79,191.62,191.59,2.77]
[1761302401852,2.79,191.62,191.6,2.77]
[1761302402458,2.79,191.68,191.6,2.77]
[1761302402658,4.00886079,191.67,191.6,2.77]
[1761302402862,4.00886079,191.66,191.6,2.77]
[1761302403063,2.79,191.67,191.6,2.77]
[1761302403362,2.79,191.65,191.61,43.2]
[1761302403558,2.79,191.65,191.62,2.77]
[1761302403958,2.79,191.65,191.61,45.97]
[1761302404767,2.79,191.65,191.62,2.77]
[1761302407061,4.6949,191.66,191.62,2.77]
[1761302407264,2.79,191.67,191.62,2.77]
[1761302410067,4.6946,191.67,191.62,2.77]
[1761302410268,2.79,191.66,191.62,2.77]
[1761302417881,7.4842,191.69,191.63,2.77]
[1761302418180,2.79,191.67,191.63,2.77]
[1761302419469,2.79,191.7,191.61,45.97]
[1761302419668,2.79,191.68,191.61,43.2]
[1761302419873,4.03037173,191.67,191.62,2.77]
[1761302420074,2.79,191.66,191.63,2.77]
[1761302428287,2.79,191.66,191.64,2.62]